bitfinex-derivatives/quotes_ETHF0:USTF0_20251203
["timestamp","ask_amount","ask_price","bid_price","bid_amount"]
[1764801527925,50.765,3176.3,3176.2,3.2078]
[1764801528422,50.76736033,3176.3,3176.2,3.21023678]
[1764801529110,56.76736033,3176.3,3176.2,3.21023678]
[1764801529616,56.76736033,3176.3,3175.9,0.00472612]
[1764801529617,59.97516033,3176.3,3175.0,3.2078]
[1764801529821,3.2078,3175.9,3175.0,3.2078]
[1764801530121,13.25643,3175.8,3174.4,3.2078]
[1764801530324,3.2078,3175.2,3174.4,3.2078]
[1764801530517,3.2078,3175.2,3174.4,0.00250462]
[1764801530518,13.094,3175.1,3174.4,0.00250462]
[1764801530723,13.094,3175.1,3174.4,0.00723074]
[1764801531219,3.2078,3174.5,3174.4,0.00723074]
[1764801531422,13.103,3174.5,3174.4,0.00723074]
[1764801531624,22.3108,3174.5,3174.0,3.2078]
[1764801531820,44.0078,3174.1,3173.5,3.2078]
[1764801532124,44.0078,3174.1,3172.4,4.5163]
[1764801532125,3.2078,3173.7,3173.0,3.2078]
[1764801532433,3.36535,3173.3,3172.0,3.2078]
[1764801532822,0.00472612,3173.0,3172.3,0.00472612]
[1764801533023,3.2078,3172.9,3172.3,0.00472612]
[1764801533328,0.00472612,3173.0,3172.5,3.2078]
[1764801535833,3.2078,3172.9,3172.3,0.00472612]
[1764801536720,0.00472612,3173.0,3172.3,0.00472612]
[1764801536925,0.15759,3172.4,3172.3,0.00472612]
[1764801537126,13.24959,3172.4,3172.3,0.00472612]
[1764801537428,54.04959,3172.4,3172.3,0.00472612]
[1764801539028,60.04959,3172.4,3172.3,0.00472612]
[1764801539228,60.04959,3172.4,3172.0,3.21070211]
[1764801539430,54.04959,3172.4,3172.0,3.21070211]
[1764801539623,3.36541,3172.1,3172.0,0.00290211]
[1764801540329,44.16541,3172.1,3172.0,0.00290211]
[1764801541627,44.0078,3172.1,3171.0,3.2078]
[1764801541830,3.36543,3171.6,3171.0,3.2078]
[1764801542030,13.075,3171.5,3171.0,3.2078]
[1764801542332,13.23264,3171.5,3171.0,3.2078]
[1764801542728,40.8,3172.1,3171.0,7.72647754]
[1764801542932,13.073,3172.0,3171.1,0.86891971]
[1764801543132,13.073,3172.0,3171.0,7.72647754]
[1764801543328,13.073,3172.0,3171.4,3.2078]
[1764801545336,0.15763,3171.8,3171.4,3.2078]
[1764801545526,3.2078,3171.5,3171.0,0.00237754]
[1764801545733,40.8,3171.1,3171.0,0.00237754]
[1764801545933,50.356,3171.1,3171.0,0.00237754]
[1764801548032,40.8,3171.1,3171.0,18.69687754]
[1764801548237,0.00472612,3171.4,3171.3,7.1468]
[1764801548535,4.379,3171.4,3171.3,15.15555602]
[1764801548734,4.379,3171.4,3171.3,18.36335602]
[1764801549234,45.179,3171.4,3171.3,18.36335602]
[1764801549729,0.00472612,3171.7,3171.3,24.36335602]
[1764801549935,4.6692,3172.2,3171.6,7.1468]
[1764801550123,4.6692,3172.2,3171.7,4.07955602]
[1764801550322,7.552,3172.3,3171.8,0.87175602]
[1764801550627,7.552,3172.3,3171.9,0.87175602]
[1764801550831,40.8,3172.0,3171.7,3.2078]
[1764801551029,40.8,3172.0,3171.8,0.87189393]
[1764801551230,40.8,3172.0,3171.9,0.87189393]
[1764801555031,40.8,3172.0,3171.9,8.01869393]
[1764801555335,40.8,3172.0,3171.9,15.96739412]
[1764801555537,40.8,3172.0,3171.9,8.83039412]
[1764801556038,40.8,3172.0,3171.9,1.68359412]
[1764801557335,40.8,3172.0,3171.9,0.87189393]
[1764801558740,40.8,3172.0,3171.9,1.98043135]
[1764801559437,40.8,3172.0,3171.9,2.53201808]
[1764801559837,40.8,3172.0,3171.9,2.53902914]
[1764801560237,40.8,3172.0,3171.9,0.87189393]
[1764801560427,53.804,3172.0,3171.9,0.87189393]
[1764801562942,53.804,3172.0,3171.9,15.15569393]
[1764801563142,11.30156882,3172.0,3171.9,18.36349393]
[1764801564147,52.10156882,3172.0,3171.9,18.36349393]
[1764801565041,56.77076882,3172.0,3171.9,6.30921538]
[1764801565343,56.77076882,3172.0,3171.9,4.07969393]
[1764801565542,56.77076882,3172.0,3171.9,0.87189393]
[1764801566133,56.77076882,3172.0,3171.9,4.07969393]
[1764801567641,56.77076882,3172.0,3171.9,5.7523149]
[1764801568037,56.77076882,3172.0,3171.9,4.07969393]
[1764801568439,56.77076882,3172.0,3171.9,0.87189393]
[1764801568639,56.77076882,3172.0,3171.9,5.19500451]
[1764801570242,56.77076882,3172.0,3171.9,4.07969393]
[1764801570444,53.76,3172.0,3171.9,5.19500451]
[1764801571035,58.4292,3172.0,3171.9,5.19500451]
[1764801571239,45.4692,3172.0,3171.9,5.19500451]
[1764801571441,58.4272,3172.0,3171.9,4.07969393]
[1764801573344,58.4272,3172.0,3171.9,4.91664276]
[1764801573543,58.4272,3172.0,3171.9,4.07969393]
[1764801573748,58.4272,3172.0,3171.9,4.91667286]
[1764801574046,58.4272,3172.0,3171.9,4.07969393]
[1764801574243,58.4272,3172.0,3171.9,4.91702154]
[1764801575047,58.4272,3172.0,3171.9,4.07969393]
[1764801575244,58.4272,3172.0,3171.9,4.91709003]
[1764801575639,53.758,3172.0,3171.9,11.22649393]
[1764801575834,53.758,3172.0,3171.0,6.5853389]
[1764801575835,15.2622,3171.1,3171.0,3.21017754]
[1764801576041,12.947,3171.2,3171.1,14.8927]
[1764801576241,20.7441,3171.2,3171.1,14.8927]
[1764801576451,53.747,3171.2,3171.1,14.8927]
[1764801577250,53.747,3171.2,3171.1,20.8927]
[1764801578248,12.942,3171.9,3171.8,14.8927]
[1764801578450,12.942,3171.9,3171.8,19.77760074]
[1764801578650,40.8,3171.9,3171.8,16.56980074]
[1764801578852,40.8,3171.9,3171.8,14.8927]
[1764801579155,40.8,3171.9,3171.8,16.56974781]
[1764801580345,40.8,3171.9,3171.8,14.8927]
[1764801581251,40.8,3171.9,3171.8,16.56974781]
[1764801582655,7.7029,3171.1,3171.0,7.40807754]
[1764801582863,12.923,3171.2,3171.1,14.6581]
[1764801583355,53.723,3171.2,3171.1,17.8659]
[1764801583554,53.723,3171.2,3171.1,14.6581]
[1764801583757,53.723,3171.2,3171.1,7.4057]
[1764801584663,53.723,3171.2,3171.1,14.6581]
[1764801585757,40.8,3171.2,3171.1,17.8659]
[1764801586756,12.926,3171.6,3171.5,19.1733]
[1764801586954,12.926,3171.6,3171.5,24.26891393]
[1764801587265,40.8,3171.6,3171.5,16.86321393]
[1764801587463,40.8,3171.6,3171.5,24.26891393]
[1764801587764,40.8,3171.6,3171.5,25.10005917]
[1764801590370,12.917,3172.0,3171.9,14.6581]
[1764801590570,12.917,3172.0,3171.9,18.69704524]
[1764801590871,53.717,3172.0,3171.9,18.69704524]
[1764801591570,3.21252612,3172.4,3172.3,0.1576]
[1764801591571,0.00472612,3172.4,3172.3,0.1576]
[1764801591757,4.2942,3173.0,3172.3,6.08435917]
[1764801591961,4.2942,3172.5,3172.4,12.52034524]
[1764801592162,4.2942,3172.5,3171.7,12.902]
[1764801592163,4.2942,3172.0,3171.7,16.5594]
[1764801592370,4.2942,3172.0,3171.9,13.3516]
[1764801592568,57.8712,3172.5,3171.9,13.3516]
[1764801592767,57.8712,3172.5,3172.4,3.2078]
[1764801592768,57.87592612,3172.5,3172.4,3.2078]
[1764801595466,14.8564,3171.9,3171.8,3.2078]
[1764801597673,14.8564,3171.4,3171.3,3.2078]
[1764801600379,14.8564,3171.1,3171.0,0.00237754]
[1764801600775,19.1506,3171.0,3170.4,3.2078]
[1764801601480,14.8564,3170.1,3170.0,3.2078]
[1764801601976,14.85962523,3170.1,3170.0,0.00245058]
[1764801603279,68.54062523,3170.1,3170.0,0.00245058]
[1764801604079,14.7887,3169.8,3169.7,0.00472612]
[1764801604285,14.7887,3169.8,3169.7,0.81766967]
[1764801604981,14.7887,3169.8,3169.7,0.82145988]
[1764801606280,14.7887,3169.8,3169.7,0.00851633]
[1764801606483,7.7029,3169.8,3169.7,16.02925519]
[1764801607090,14.7887,3169.8,3169.7,8.43975519]
[1764801607788,14.7887,3169.8,3169.7,0.81995519]
[1764801608188,14.4771,3169.2,3169.0,1.11491282]
[1764801608482,14.4771,3168.9,3168.8,3.2078]
[1764801608788,55.2771,3168.9,3168.8,3.2078]
[1764801609183,55.2771,3168.9,3168.8,3.21137784]
[1764801609788,68.1481,3168.9,3168.8,3.21137784]
[1764801610380,68.1481,3168.9,3168.5,0.00472612]
[1764801610381,14.4771,3168.6,3168.5,0.00472612]
[1764801610587,27.3461,3168.6,3168.5,0.00472612]
[1764801610986,68.1461,3168.6,3168.5,0.00472612]
[1764801611389,68.1461,3168.6,3168.5,0.00836578]
[1764801612389,68.1461,3168.6,3167.7,3.2078]
[1764801612390,14.4771,3167.8,3167.7,7.6198]
[1764801612587,14.4771,3167.8,3167.5,1.88781393]
[1764801612988,14.4771,3167.8,3167.7,7.6198]
[1764801613292,44.0078,3168.6,3168.5,7.6198]
[1764801613692,44.01136685,3168.6,3168.5,7.6198]
[1764801615292,4.5098,3168.5,3168.2,1.88781393]
[1764801615494,18.9869,3168.5,3168.4,7.6198]
[1764801615788,11.9011,3168.5,3168.4,7.6198]
[1764801615995,44.01136685,3168.6,3168.5,15.2093]
[1764801616195,3.20891627,3168.6,3168.5,19.8947]
[1764801616588,0.00356685,3168.6,3168.5,19.8947]
[1764801617894,0.00356685,3168.6,3168.5,15.2093]
[1764801624611,0.00356685,3168.6,3168.5,19.8947]
[1764801626313,0.00356685,3168.6,3168.5,20.05249]
[1764801627413,0.00356685,3168.6,3168.5,21.16740282]
[1764801628314,0.00356685,3168.6,3168.5,20.05249]
[1764801629316,0.00356685,3168.6,3168.5,21.72768184]
[1764801629510,0.00356685,3168.6,3168.5,21.72825045]
[1764801630710,14.48066685,3168.6,3168.5,17.04285045]
[1764801630910,14.48066685,3168.6,3168.5,15.36709]
[1764801631110,14.48066685,3168.6,3168.5,7.77759]
[1764801631411,14.48066685,3168.6,3168.4,1.67576045]
[1764801631713,14.48066685,3168.6,3168.3,9.29556045]
[1764801631714,14.4771,3168.4,3168.3,9.29556045]
[1764801632412,14.4771,3168.4,3168.3,16.88506045]
[1764801633411,14.4771,3168.4,3168.3,15.2093]
[1764801634311,14.4771,3168.4,3168.3,7.6198]
[1764801634816,14.4771,3168.4,3168.2,3.56724567]
[1764801635017,14.4771,3168.4,3168.3,1.67943174]
[1764801635516,55.2771,3168.4,3168.3,1.67943174]
[1764801636717,55.2771,3168.4,3168.0,1.67943174]
[1764801636718,14.9755,3168.1,3168.0,1.67943174]
[1764801637014,14.9755,3167.9,3167.8,1.67943174]
[1764801637220,14.9755,3167.8,3167.7,1.68305709]
[1764801637415,27.7665,3167.8,3167.7,0.00362535]
[1764801638122,14.9755,3167.6,3167.4,1.68416554]
[1764801638319,32.2616,3167.5,3167.4,0.0047338]
[1764801638515,35.4694,3167.5,3167.4,1.12565317]
[1764801638725,76.2694,3167.5,3167.4,0.0047338]
[1764801639219,76.2694,3167.5,3167.4,0.00774135]
[1764801640212,76.2694,3167.5,3167.4,0.84739837]
[1764801641120,76.2694,3167.5,3167.4,0.84737172]
[1764801641321,69.0885,3167.5,3167.4,15.82297172]
[1764801641521,69.0885,3167.5,3167.4,14.98334135]
[1764801642718,48.3509,3167.5,3167.4,7.16874135]
[1764801643726,45.1431,3167.5,3167.4,7.16874135]
[1764801644535,45.1431,3167.5,3167.4,0.00774135]
[1764801644730,0.15787,3166.9,3166.7,3.526e-05]
[1764801644939,14.4839,3166.2,3166.1,7.6399]
[1764801645227,17.6917,3166.2,3166.1,0.83845031]
[1764801645431,17.6917,3166.2,3166.0,0.83845031]
[1764801645734,14.4839,3165.8,3165.7,7.79782]
[1764801646030,14.4839,3165.8,3165.7,7.80184436]
[1764801646225,17.6917,3165.8,3165.7,8.63953231]
[1764801646733,3.2078,3165.8,3165.7,16.45413231]
[1764801647123,3.2078,3165.8,3165.7,15.61644436]
[1764801647330,3.2078,3165.8,3165.7,16.45348346]
[1764801647732,2.88495516,3165.8,3165.7,21.61644436]
[1764801648026,3.385e-05,3166.2,3166.1,15.61241]
[1764801648234,3.2078,3166.8,3166.7,15.4545]
[1764801648624,3.2078,3166.8,3166.7,16.29074302]
[1764801649126,3.2078,3167.8,3167.4,15.4545]
[1764801649327,3.21136143,3167.8,3167.4,15.4545]
[1764801649528,14.4839,3167.7,3167.6,0.67200429]
[1764801652336,14.4839,3167.7,3167.6,8.31190429]
[1764801652638,14.4839,3167.7,3167.6,0.67200429]
[1764801659937,6.63565611,3167.4,3167.3,15.4592338]
[1764801661046,13.76845611,3167.4,3167.3,15.4592338]
[1764801661440,6.63565611,3167.4,3167.3,15.4592338]
[1764801663146,6.63565611,3167.4,3167.3,16.29496311]
[1764801664844,10.89206143,3167.8,3167.3,0.84046311]
[1764801665252,15.2836,3167.5,3167.4,15.70032931]
[1764801665445,19.9169,3167.5,3167.4,0.83572931]
[1764801665642,15.2836,3167.4,3167.3,0.84046311]
[1764801666452,15.2836,3167.4,3167.3,0.0047338]
[1764801666649,15.2836,3167.4,3167.3,0.84529757]
[1764801667746,15.2836,3167.0,3166.9,1.67833649]
[1764801668043,15.2836,3166.8,3166.7,9.40243649]
[1764801668949,56.0836,3166.8,3166.7,1.67833649]
[1764801669542,56.0836,3166.8,3166.7,9.40243649]
[1764801669847,15.2836,3166.8,3166.7,7.7241]
[1764801670244,15.2836,3166.8,3166.7,7.7675396]
[1764801670447,40.8,3166.9,3166.8,7.7241]
[1764801670645,23.1247,3167.0,3166.9,14.8646]
[1764801670841,19.9169,3167.0,3166.9,14.8646]
[1764801671238,60.7169,3167.0,3166.9,14.9080396]
[1764801671843,7.6807,3167.5,3167.4,14.8646]
[1764801672242,7.6807,3167.5,3167.4,14.9080396]
[1764801672850,15.2836,3167.5,3167.4,14.9080396]
[1764801673253,3.21136143,3167.8,3167.7,14.8646]
[1764801673447,0.00356143,3167.8,3167.7,14.8646]
[1764801673753,0.00356143,3167.8,3167.7,16.54623302]
[1764801674147,0.00356143,3167.8,3167.7,16.70406302]
[1764801674346,0.00356143,3167.8,3167.7,16.74750262]
[1764801674654,0.00356143,3167.8,3167.7,15.0658696]
[1764801675351,15.28716143,3167.8,3167.7,0.0434396]
[1764801675545,9.21136143,3167.8,3167.3,1.12150319]
[1764801675744,15.2836,3166.8,3166.7,3.2078]
[1764801678654,48.4807,3166.8,3166.7,10.9319]
[1764801679056,48.4807,3166.8,3166.7,18.0724]
[1764801679858,7.6807,3167.0,3166.9,14.8646]
[1764801680058,3.2078,3167.4,3166.9,14.8646]
[1764801680252,40.8,3167.3,3167.2,7.7241]
[1764801680453,40.8,3167.3,3167.2,7.7675396]
[1764801682857,40.8,3167.3,3167.2,0.0434396]
[1764801685656,40.8,3167.3,3167.2,7.7675396]
[1764801686162,40.8,3167.3,3167.2,0.0434396]
[1764801687567,15.2836,3166.7,3166.6,1.68170848]
[1764801688664,15.2836,3166.7,3166.6,9.40580848]
[1764801689261,15.2836,3166.7,3166.6,7.7241]
[1764801689464,15.2836,3166.7,3166.6,9.40580848]
[1764801690766,15.2836,3166.7,3166.6,9.44924808]
[1764801692468,15.2836,3166.7,3166.6,1.72514808]
[1764801693268,15.2836,3166.7,3166.6,0.0434396]
[1764801697079,7.8411,3167.0,3166.4,0.0047338]
[1764801697080,19.0757,3166.5,3166.4,0.0047338]
[1764801697263,22.2835,3166.5,3166.4,0.0047338]
[1764801698666,63.0835,3166.5,3166.4,0.0047338]
[1764801699172,55.5943,3166.5,3166.4,0.0047338]
[1764801700969,68.3633,3166.5,3166.4,0.0047338]
[1764801703368,68.3633,3166.5,3165.8,3.788]
[1764801703573,7.7155,3164.6,3164.5,15.373]
[1764801704072,15.5269,3164.6,3164.5,15.373]
[1764801704574,15.53031808,3164.6,3164.5,15.37551591]
[1764801705674,15.53031808,3164.6,3164.5,16.50538587]
[1764801706077,15.53031808,3164.6,3164.5,0.00251591]
[1764801706476,0.00341808,3164.6,3164.5,16.62030591]
[1764801706678,0.00341808,3164.6,3164.5,17.75017587]
[1764801707172,0.00341808,3164.6,3164.5,16.62030591]
[1764801708377,7.71891808,3164.6,3164.5,16.46231591]
[1764801708578,15.53031808,3164.6,3164.5,15.37551591]
[1764801709077,7.71891808,3164.6,3164.5,15.37551591]
[1764801709275,15.5269,3164.3,3164.0,1.12986996]
[1764801709578,15.5269,3163.9,3163.8,7.5096]
[1764801710170,15.5269,3163.9,3163.3,1.28791996]
[1764801710368,4.5949,3164.0,3163.5,15.373]
[1764801710681,7.7155,3163.6,3163.5,15.373]
[1764801711683,4.5949,3164.0,3163.5,15.373]
[1764801711982,3.2078,3164.3,3163.9,15.373]
[1764801712282,15.5269,3164.0,3163.9,15.373]
[1764801713183,7.7155,3164.0,3163.9,15.373]
[1764801715475,10.9233,3164.3,3164.2,7.5096]
[1764801715678,3.2078,3164.3,3164.2,15.373]
[1764801716381,3.2078,3164.3,3164.2,15.531]
[1764801716680,0.00341808,3164.6,3164.5,15.373]
[1764801716884,0.00341808,3164.6,3164.5,19.7644]
[1764801718476,10.9233,3165.5,3165.4,15.373]
[1764801718872,3.2078,3165.5,3165.4,15.373]
[1764801719582,2.89042895,3165.5,3165.4,15.373]
[1764801719784,2.89042895,3165.5,3165.4,15.53094]
[1764801721984,0.0036213,3165.5,3165.4,15.53094]
[1764801723581,0.0036213,3165.5,3165.4,16.66080996]
[1764801724781,3.2078,3166.8,3166.3,0.1579]
[1764801724987,2.42101843,3168.1,3167.3,7.7643]
[1764801724988,2.98903582,3167.4,3167.3,7.7643]
[1764801725290,7.2002,3167.8,3167.7,7.7643]
[1764801725490,19.1859,3168.0,3167.9,7.7643]
[1764801725686,19.1859,3168.0,3167.9,15.3987]
[1764801725885,19.18925682,3168.0,3167.9,7.76820364]
[1764801726287,19.18925682,3168.0,3167.9,0.00390364]
[1764801726687,19.18925682,3168.0,3167.9,0.04738284]
[1764801731594,19.18925682,3168.0,3167.6,0.00474136]
[1764801731798,19.18925682,3168.0,3167.1,10.9721]
[1764801731799,14.6352,3167.2,3167.1,10.9721]
[1764801732683,14.6352,3167.2,3167.1,10.97458863]
[1764801733395,14.6352,3167.2,3167.1,3.21028863]
[1764801733595,14.6352,3167.2,3167.1,0.00248863]
[1764801734691,40.8,3167.4,3167.1,0.00248863]
[1764801734896,4.5507,3167.5,3167.1,0.00248863]
[1764801734897,14.6352,3167.2,3167.1,0.00248863]
[1764801735499,55.4352,3167.2,3167.1,0.00248863]
[1764801736791,55.4352,3167.2,3167.1,0.04592823]
[1764801737385,55.4352,3167.2,3167.1,7.81022823]
[1764801737386,14.6352,3167.2,3167.1,7.81022823]
[1764801737588,4.5507,3167.5,3167.1,15.44462823]
[1764801737789,19.1859,3167.5,3167.4,7.7643]
[1764801737988,19.1859,3167.5,3167.4,15.3987]
[1764801737989,7.2002,3167.5,3167.4,15.3987]
[1764801738189,3.2078,3167.7,3167.6,15.3987]
[1764801738994,3.2078,3167.7,3167.6,15.4421396]
[1764801740399,19.18925682,3168.0,3167.9,7.7643]
[1764801741002,19.18925682,3168.0,3167.9,7.8077396]
[1764801742601,19.18925682,3168.0,3167.9,15.4421396]
[1764801742795,19.18925682,3168.0,3167.9,7.8077396]
[1764801747093,19.18925682,3168.0,3167.9,15.4421396]
[1764801747306,19.18925682,3168.0,3167.9,15.4855792]
[1764801748808,7.20355682,3168.0,3167.9,15.4855792]
[1764801749506,2.25606532,3171.2,3170.1,3.2078]
[1764801749701,4.5507,3172.0,3171.1,18.6065]
[1764801749897,14.6352,3171.8,3171.7,3.2078]
[1764801750298,14.63832197,3171.8,3171.7,3.29800498]
[1764801750500,14.63832197,3171.8,3171.7,4.22085007]
[1764801751199,14.63832197,3171.8,3171.7,5.33569788]
[1764801751597,14.63832197,3171.8,3171.7,5.33592004]
[1764801751795,14.63832197,3171.8,3171.7,4.22085007]
[1764801752200,14.63832197,3171.8,3171.7,5.33447255]
[1764801752599,14.63832197,3171.8,3171.7,4.22085007]
[1764801753704,14.63832197,3171.8,3171.4,3.2125338]
[1764801753705,19.2242,3171.5,3171.4,3.2125338]
[1764801753900,19.2242,3171.0,3170.9,1.69105318]
[1764801754100,14.6355,3170.9,3170.8,4.89885318]
[1764801754611,14.6355,3170.9,3170.8,3.2078]
[1764801754814,14.6355,3170.9,3170.8,3.21155285]
[1764801755907,14.6355,3170.2,3170.1,3.2078]
[1764801756510,55.4355,3170.2,3170.1,3.2078]
[1764801756906,14.6355,3169.2,3169.1,3.2078]
[1764801757204,14.63884663,3169.2,3169.1,0.00338394]
[1764801759115,55.43884663,3169.2,3169.1,0.00338394]
[1764801759811,40.80334663,3169.2,3169.1,15.11598394]
[1764801760410,3.2078,3169.3,3169.2,14.7864]
[1764801760611,3.2078,3170.1,3169.5,21.34999252]
[1764801760912,3.2078,3170.1,3169.9,14.7864]
[1764801760913,40.8,3170.0,3169.9,14.7864]
[1764801761314,40.80291059,3170.0,3169.9,14.7864]
[1764801763509,0.00291059,3170.0,3169.9,14.7864]
[1764801765013,0.00291059,3170.0,3169.9,18.15192]
[1764801765706,0.00291059,3170.0,3169.9,19.05292535]
[1764801766409,0.0047338,3170.5,3170.4,14.7864]
[1764801766609,0.0047338,3170.5,3170.4,15.68740535]
[1764801766918,0.0047338,3170.5,3170.4,21.28083116]
[1764801767214,0.0047338,3170.5,3170.4,19.05288535]
[1764801767411,0.00740757,3170.5,3170.4,19.05288535]
[1764801768215,3.2078,3171.0,3170.9,14.7864]
[1764801768409,3.2078,3171.6,3171.0,4.6666]
[1764801768609,3.2078,3171.6,3171.1,1.05864535]
[1764801768812,3.2078,3171.6,3171.2,8.21210535]
[1764801768813,7.2495,3171.3,3171.2,8.21210535]
[1764801769312,0.00259517,3171.3,3171.2,15.84504535]
[1764801771517,0.00259517,3171.3,3171.2,15.88841995]
[1764801772418,40.8,3171.8,3171.7,14.7864]
[1764801772606,40.8,3171.8,3171.7,15.68740535]
[1764801773417,40.80398902,3171.8,3171.7,15.69110069]
[1764801773717,40.80398902,3171.8,3171.7,15.73447529]
[1764801775919,0.00398902,3171.8,3171.7,15.73447529]
[1764801776118,0.00398902,3171.8,3171.7,17.96246405]
[1764801776417,0.00398902,3171.8,3171.7,15.73447529]
[1764801776615,2.23858177,3176.2,3171.7,2.3347922]
[1764801776815,17.6924,3176.2,3175.6,0.15742]
[1764801777017,14.4846,3176.2,3176.1,0.83644358]
[1764801777216,55.2846,3176.2,3176.1,4.09852353]
[1764801777407,55.2846,3176.2,3176.1,4.93496711]
[1764801777612,61.2879578,3176.2,3176.1,4.98206191]
[1764801778119,61.2879578,3176.2,3176.1,4.14561833]
[1764801779522,61.2879578,3176.2,3175.9,3.2078]
[1764801779523,14.4846,3176.0,3175.9,3.2078]
[1764801779910,7.2495,3175.9,3175.4,0.83644358]
[1764801780220,14.4846,3175.4,3175.3,0.83644358]
[1764801780421,14.4846,3175.4,3175.3,0.00364104]
[1764801780618,20.4846,3175.4,3175.3,0.00364104]
[1764801781014,61.2846,3175.4,3175.3,0.00364104]
[1764801781618,14.4846,3175.1,3175.0,0.0047262]
[1764801782326,55.2846,3175.1,3175.0,0.0047262]
[1764801782618,55.2846,3175.1,3175.0,0.00711206]
[1764801783419,7.6334,3174.4,3174.3,3.2078]
[1764801783717,44.0078,3175.1,3174.3,3.2078]
[1764801783718,3.2078,3175.1,3174.3,3.2078]
[1764801783921,3.2078,3175.1,3174.4,0.82714218]
[1764801784122,40.8,3175.0,3174.3,0.82714218]
[1764801784321,15.4934,3174.4,3174.3,0.83494896]
[1764801784620,15.4934,3174.4,3174.3,0.00780678]
[1764801785126,56.2934,3174.4,3174.3,0.00780678]
[1764801785318,56.2934,3174.4,3174.3,6.78e-06]
[1764801785918,15.4934,3173.8,3173.7,0.82714218]
[1764801786120,15.4934,3173.7,3173.6,0.82714218]
[1764801786315,15.4934,3173.6,3173.5,3.2078]
[1764801786722,56.2934,3173.6,3173.5,3.21179158]
[1764801786923,56.2934,3173.6,3173.5,0.00399158]
[1764801788024,15.4934,3172.9,3172.5,0.82714218]
[1764801788328,4.474,3173.4,3172.5,0.82714218]
[1764801788329,15.4934,3172.6,3172.5,0.82714218]
[1764801789126,15.4934,3172.6,3172.5,0.83000017]
[1764801789727,15.4934,3172.6,3172.5,0.00285799]
[1764801789926,15.4934,3172.6,3172.5,0.83283755]
[1764801790131,7.6334,3172.6,3172.5,0.00285799]
[1764801791521,7.6334,3172.6,3172.5,0.88691518]
[1764801791729,15.4934,3172.6,3172.5,1.7180951]
[1764801792028,56.2934,3172.6,3172.5,1.7180951]
[1764801792528,56.2934,3172.6,3172.5,0.88691518]
[1764801794327,56.2934,3172.6,3172.5,1.7180951]
[1764801796426,56.2934,3172.6,3172.5,0.88691518]
[1764801796722,56.2934,3172.6,3172.5,1.72124466]
[1764801797223,7.6108,3172.1,3172.0,1.10291304]
[1764801797531,15.2216,3172.0,3171.9,1.10291304]
[1764801797728,7.6108,3171.8,3171.7,1.67288716]
[1764801798029,15.2216,3171.7,3171.6,9.83218716]
[1764801798223,15.2216,3171.7,3171.6,3.79172409]
[1764801798631,15.2216,3171.7,3171.6,0.00372409]
[1764801798829,7.6108,3171.7,3171.6,0.00372409]
[1764801799329,7.6108,3171.7,3171.6,7.71952409]
[1764801799529,7.6108,3171.7,3171.6,11.50752409]
[1764801799929,7.6108,3171.7,3171.6,13.17850908]
[1764801800322,15.2216,3171.7,3171.6,1.67470908]
[1764801800631,3.2078,3171.8,3171.6,9.39050908]
[1764801800834,15.2216,3171.7,3171.6,1.67470908]
[1764801801328,7.6108,3171.7,3171.6,8.8341251]
[1764801801537,7.6108,3171.7,3171.6,1.1183251]
[1764801801538,15.2216,3171.7,3171.6,1.1183251]
[1764801802826,56.0216,3171.7,3171.6,1.1183251]
[1764801804133,56.0216,3171.7,3171.6,0.00372409]
[1764801804831,48.4108,3171.7,3171.6,14.92462409]
[1764801805026,48.4108,3171.7,3171.6,16.0392251]
[1764801806134,48.4108,3171.7,3171.6,14.92462409]
[1764801806335,48.4108,3171.7,3171.6,18.71262409]
[1764801806540,40.8,3171.7,3171.6,18.71262409]
[1764801807226,40.8,3171.7,3171.6,19.8272251]
[1764801807436,40.8,3171.7,3171.6,18.71262409]
[1764801808235,40.8,3171.7,3171.6,20.38360908]
[1764801809031,3.2078,3171.8,3171.6,5.46270908]
[1764801809241,3.2078,3171.8,3171.7,17.46810099]
[1764801809535,44.0078,3171.8,3171.7,17.46810099]
[1764801809925,3.2078,3171.8,3171.7,21.25610099]
[1764801810129,3.2078,3171.8,3171.7,19.585116]
[1764801810329,18.4294,3171.8,3171.7,4.664216]
[1764801810644,18.4294,3171.8,3171.7,5.78268369]
[1764801810934,18.4294,3171.8,3171.4,1.67098499]
[1764801811133,7.8828,3170.9,3170.8,3.788]
[1764801811325,7.8828,3170.8,3170.7,3.788]
[1764801811529,40.8,3171.1,3171.0,19.2922]
[1764801812039,0.00368186,3171.1,3171.0,4.53222425]
[1764801812238,0.00368186,3171.1,3171.0,19.45312425]
[1764801812538,0.00368186,3171.1,3171.0,23.24112425]
[1764801813330,0.00368186,3171.1,3171.0,12.09038425]
[1764801813331,3.94508186,3171.1,3171.0,12.09038425]
[1764801813535,0.00368186,3171.1,3171.0,18.95688425]
[1764801813742,0.00368186,3171.1,3171.0,19.11453425]
[1764801814340,0.00368186,3171.1,3171.0,21.34252301]
[1764801814750,3.2078,3171.7,3171.6,14.5823]
[1764801815054,3.2078,3171.7,3171.6,18.52792]
[1764801815754,3.21142521,3171.7,3171.6,18.52792]
[1764801816051,0.0047262,3172.0,3171.6,20.5429742]
[1764801816254,3.2078,3172.3,3172.2,14.5823]
[1764801817251,44.01022878,3172.3,3172.2,14.5823]
[1764801818258,0.00242878,3172.3,3172.2,14.5823]
[1764801820565,7.1512,3172.2,3172.1,2.40332492]
[1764801820858,14.3024,3172.2,3172.1,2.40332492]
[1764801821059,14.3024,3172.2,3172.1,11.47769]
[1764801821060,7.1512,3172.2,3172.1,11.47769]
[1764801821456,7.1512,3172.2,3172.1,19.26399]
[1764801821660,7.1512,3172.2,3172.1,15.47599]
[1764801822660,7.1512,3172.1,3172.0,4.7081]
[1764801822852,14.3024,3172.1,3172.0,6.95682996]
[1764801823052,14.3024,3172.1,3172.0,7.82023609]
[1764801823250,14.3024,3172.1,3172.0,5.57150613]
[1764801823456,14.3024,3172.1,3172.0,0.86340613]
[1764801824362,27.0864,3172.1,3172.0,0.86340613]
[1764801825857,6.2878,3171.7,3171.6,3.2078]
[1764801826164,12.5756,3171.7,3171.6,3.2078]